[Event "Championnat de France Universitaire Nan"]
[Site "Nancy, France"]
[Date "2020.02.09"]
[Round "9.8"]
[White "Pak, Alexander"]
[Black "Fischer Schilling, Ian"]
[Result "0-1"]
[WhiteElo "2183"]
[BlackElo "1810"]
[PlyCount "94"]
[EventDate "2020.??.??"]
[TimeControl "15+5"]
[WhiteClock "0:00:33"]
[BlackClock "0:02:41"]

1. e4 {[%emt 0:13:18]} c5 {[%emt 0:00:03]} 2. Nf3 {[%emt 0:00:01]} d6 {[%emt 0:
00:01]} 3. d4 {[%emt 0:00:02]} cxd4 {[%emt 0:00:02]} 4. Nxd4 {[%emt 0:00:01]}
Nf6 {[%emt 0:00:05]} 5. Nc3 {[%emt 0:00:01]} a6 {[%emt 0:00:02]} 6. Be2 {[%emt
0:00:02]} e5 {[%emt 0:00:02]} 7. Nb3 {[%emt 0:00:01]} Be7 {[%emt 0:00:04]} 8.
Be3 {[%emt 0:00:02]} Be6 {[%emt 0:00:08]} 9. O-O {[%emt 0:00:02]} d5 {[%emt 0:
00:23]} 10. exd5 {[%emt 0:00:24]} Nxd5 {[%emt 0:00:02]} 11. Nxd5 {[%emt 0:00:
48]} Bxd5 {[%emt 0:00:20]} 12. c4 {[%emt 0:00:53]} Be6 {[%emt 0:00:36]} 13. Nc5
{[%emt 0:00:46]} Bxc5 {[%emt 0:00:24]} 14. Qxd8+ {[%emt 0:00:05]} Kxd8 {[%emt
0:00:02]} 15. Bxc5 {[%emt 0:00:01]} Nd7 {[%emt 0:00:03]} 16. Bd6 {[%emt 0:00:
19]} Rc8 {[%emt 0:00:21]} 17. b3 {[%emt 0:00:01]} Rc6 {[%emt 0:00:23]} 18. Rad1
{[%emt 0:00:05]} e4 {[%emt 0:01:38]} 19. Rd4 {[%emt 0:00:35]} Bf5 {[%emt 0:00:
30]} 20. Rfd1 {[%emt 0:00:16]} Ke8 {[%emt 0:02:40]} 21. g4 {[%emt 0:00:18]} Bg6
{[%emt 0:00:17]} 22. Bg3 {[%emt 0:01:00]} Nf8 {[%emt 0:00:34]} 23. Rd8+ {[%emt
0:00:11]} Ke7 {[%emt 0:00:01]} 24. Rb8 {[%emt 0:00:14]} b6 {[%emt 0:00:41]} 25.
Rdd8 {[%emt 0:00:36]} f6 {[%emt 0:00:34]} 26. c5 {[%emt 0:00:37]} bxc5 {[%emt
0:00:37]} 27. Bc4 {[%emt 0:00:52]} Bf7 {[%emt 0:00:36]} 28. Bxf7 {[%emt 0:02:
16]} Kxf7 {[%emt 0:00:00]} 29. Rb7+ {[%emt 0:00:24]} Kg6 {[%emt 0:01:09]} 30.
Bd6 {[%emt 0:01:38]} Ne6 {[%emt 0:00:01]} 31. Rxh8 {[%emt 0:00:04]} Rxd6 {
[%emt 0:00:01]} 32. h4 {[%emt 0:00:19]} h6 {[%emt 0:00:31]} 33. Re8 {[%emt 0:
00:33]} f5 {[%emt 0:00:55]} 34. h5+ {[%emt 0:00:22]} Kf6 {[%emt 0:00:15]} 35.
gxf5 {[%emt 0:00:21]} Kxf5 {[%emt 0:00:02]} 36. f3 {[%emt 0:02:03]} exf3 {
[%emt 0:00:15]} 37. Kf2 {[%emt 0:00:20]} Kg4 {[%emt 0:00:33]} 38. Rf7 {[%emt 0:
00:15]} Rd2+ {[%emt 0:00:21]} 39. Kf1 {[%emt 0:00:42]} Ng5 {[%emt 0:00:27]} 40.
Rxg7 {[%emt 0:00:11]} Kxh5 {[%emt 0:00:02]} 41. a4 {[%emt 0:00:12]} Rb2 {[%emt
0:00:03]} 42. Re3 {[%emt 0:00:04]} Kg4 {[%emt 0:00:12]} 43. Rc3 {[%emt 0:00:21]
} Kg3 {[%emt 0:00:06]} 44. Rc1 {[%emt 0:00:00]} Rh2 {[%emt 0:00:08]} 45. Kg1 {
[%emt 0:00:07]} f2+ {[%emt 0:00:01]} 46. Kf1 {[%emt 0:00:01]} Rh1+ {[%emt 0:00:
01]} 47. Ke2 {[%emt 0:00:01]} Rxc1 {[%emt 0:00:02]} 0-1